fUSD/lending_fUSD_20241230
["ID","MTS","AMOUNT","RATE_DAILY","PERIOD"]
[347184372,1735554646335,-500.0,0.00013698,2]
[347184373,1735554646345,-1154.95,0.00013698,2]
[347184374,1735554646354,-19002.09,0.00013698,2]
[347184375,1735554646363,-500.0,0.00013698,2]
[347184376,1735554646372,-13799.11,0.00013698,2]
[347184377,1735554646382,-500.0,0.00013698,2]
[347184378,1735554646391,-503.16819731,0.00013698,2]
[347184379,1735554646401,-1060.349808,0.00013698,2]
[347184380,1735554646410,-525.18176719,0.00013698,2]
[347184381,1735554646420,-2447.22,0.00013698,2]
[347184382,1735554646429,-1368.0,0.00013698,2]
[347184383,1735554646439,-501.72190455,0.00013698,2]
[347184384,1735554646449,-1853.19,0.00013698,2]
[347184385,1735554646459,-500.0,0.00013698,2]
[347184386,1735554646468,-4504.39,0.00013698,2]
[347184387,1735554646477,-579.82,0.00013698,2]
[347184388,1735554646487,-500.0,0.00013698,2]
[347184389,1735554646496,-7288.85,0.00013698,2]
[347184390,1735554646506,-574.32,0.00013698,2]
[347184391,1735554646515,-500.0,0.00013698,2]
[347184392,1735554646524,-1624.8,0.00013698,2]
[347184393,1735554646534,-3768.96,0.00013698,2]
[347184394,1735554646543,-3241.01,0.00013698,2]
[347184395,1735554646552,-1658.66,0.00013698,2]
[347184396,1735554646561,-4417.28,0.00013698,2]
[347184397,1735554646571,-500.0,0.00013698,2]
[347184398,1735554646580,-347.65208027,0.00013698,2]
[347184399,1735554646590,-1860.22,0.00013698,2]
[347184400,1735554646599,-500.0,0.00013698,2]
[347184401,1735554646608,-500.0,0.00013698,2]
[347184402,1735554646617,-921.331711,0.00013698,2]
[347184403,1735554646627,-1376.93,0.00013698,2]
[347184404,1735554646636,-500.0,0.00013698,2]
[347184405,1735554646645,-500.0,0.00013698,2]
[347184406,1735554646654,-12335.02,0.00013698,2]
[347184407,1735554646663,-565.05,0.00013698,2]
[347184408,1735554646673,-511.39,0.00013698,2]
[347184409,1735554646682,-500.0,0.00013698,2]
[347184410,1735554646692,-5391.31,0.00013698,2]
[347184411,1735554646703,-1492.07,0.00013698,2]
[347184412,1735554646713,-2462.72,0.00013698,2]
[347184413,1735554646726,-4206.8,0.00013698,2]
[347184414,1735554646746,-624.54,0.00013698,2]
[347184415,1735554646757,-501.3163411,0.00013698,2]
[347184416,1735554646767,-1329.67,0.00013698,2]
[347184417,1735554646776,-500.0,0.00013698,2]
[347184418,1735554646786,-500.0,0.00013698,2]
[347184419,1735554646795,-500.0,0.00013698,2]
[347184420,1735554646805,-501.93482598,0.00013698,2]
[347184421,1735554646814,-3747.13,0.00013698,2]
[347184422,1735554646823,-500.0,0.00013698,2]
[347184423,1735554646832,-2416.75,0.00013698,2]
[347184424,1735554646842,-500.0,0.00013698,2]
[347184425,1735554646851,-500.0,0.00013698,2]
[347184426,1735554646860,-500.0,0.00013698,2]
[347184427,1735554646869,-380.84716896,0.00013698,2]
[347184428,1735554646879,-1532.57,0.00013698,2]
[347184429,1735554646888,-500.0,0.00013698,2]
[347184430,1735554646898,-667.51,0.00013698,2]
[347184431,1735554646907,-1109.85,0.00013698,2]
[347184432,1735554646917,-1884.81,0.00013698,2]
[347184433,1735554646926,-2393.86,0.00013698,2]
[347184434,1735554646935,-500.0,0.00013698,2]
[347184435,1735554646945,-768.73,0.00013698,2]
[347184436,1735554646957,-500.0,0.00013698,2]
[347184437,1735554646969,-2701.5,0.00013698,2]
[347184438,1735554646978,-500.0,0.00013698,2]
[347184439,1735554646988,-1145.33,0.00013698,2]
[347184440,1735554646997,-500.0,0.00013698,2]
[347184441,1735554647007,-1842.45,0.00013698,2]
[347184442,1735554647016,-500.0,0.00013698,2]
[347184443,1735554647025,-1022.94,0.00013698,2]
[347184444,1735554647035,-2458.37,0.00013698,2]
[347184445,1735554647044,-932.21,0.00013698,2]
[347184446,1735554647053,-932.21,0.00013698,2]
[347184447,1735554647062,-2768.22,0.00013698,2]
[347184448,1735554647071,-932.21,0.00013698,2]
[347184449,1735554647081,-932.21,0.00013698,2]
[347184450,1735554647091,-500.0,0.00013698,2]
[347184451,1735554647104,-500.0,0.00013698,2]
[347184452,1735554647114,-602.240036,0.00013698,2]
[347184453,1735554647123,-2222.11,0.00013698,2]
[347184454,1735554647132,-1309.59,0.00013698,2]
[347184455,1735554647143,-500.0,0.00013698,2]
[347184456,1735554647152,-1975.49,0.00013698,2]
[347184457,1735554647161,-1184.42,0.00013698,2]
[347184458,1735554647171,-500.0,0.00013698,2]
[347184459,1735554647180,-500.0,0.00013698,2]
[347184460,1735554647189,-291.09184009,0.00013698,2]
[347184461,1735554647199,-2054.1,0.00013698,2]
[347184462,1735554647209,-500.76796728,0.00013698,2]
[347184463,1735554647218,-500.0,0.00013698,2]
[347184464,1735554647227,-500.0,0.00013698,2]
[347184465,1735554647236,-1526.92,0.00013698,2]
[347184466,1735554647246,-2498.78,0.00013698,2]
[347184467,1735554647255,-500.0,0.00013698,2]
[347184468,1735554647264,-607.46,0.00013698,2]
[347184469,1735554647273,-625.99749933,0.00013698,2]
[347184470,1735554647282,-500.0,0.00013698,2]
[347184471,1735554647291,-500.0,0.00013698,2]
[347184472,1735554647300,-500.0,0.00013698,2]
[347184473,1735554647310,-633.07,0.00013698,2]
[347184474,1735554647319,-500.0,0.00013698,2]
[347184475,1735554647328,-1514.9,0.00013698,2]
[347184476,1735554647337,-500.0,0.00013698,2]
[347184477,1735554647346,-502.24,0.00013698,2]
[347184478,1735554647355,-798.38,0.00013698,2]
[347184479,1735554647364,-500.0,0.00013698,2]
[347184480,1735554647373,-500.0,0.00013698,2]
[347184481,1735554647383,-500.0,0.00013699,2]
[347184482,1735554647392,-273.371652,0.00013699,2]
[347184483,1735554647401,-273.371652,0.00013699,2]
[347184484,1735554647411,-4000.0,0.00013699,2]
[347184485,1735554647420,-800.0,0.00013699,2]
[347184486,1735554647430,-800.0,0.00013699,2]
[347184487,1735554647439,-800.0,0.00013699,2]
[347184488,1735554647450,-800.0,0.00013699,2]
[347184489,1735554647459,-800.0,0.00013699,2]
[347184490,1735554647468,-800.0,0.00013699,2]
[347184491,1735554647478,-2678.06,0.00013699,2]
[347184492,1735554647488,-200.0,0.00013699,2]
[347184493,1735554647497,-800.0,0.00013699,2]
[347184494,1735554647507,-500.0,0.00013699,2]
[347184495,1735554647516,-800.0,0.00013699,2]
[347184496,1735554647526,-800.0,0.00013699,2]
[347184497,1735554647536,-800.0,0.00013699,2]
[347184498,1735554647545,-800.0,0.00013699,2]
[347184499,1735554647555,-800.0,0.00013699,2]
[347184500,1735554647564,-800.0,0.00013699,2]
[347184501,1735554647574,-800.0,0.00013699,2]
[347184502,1735554647584,-800.0,0.00013699,2]
[347184503,1735554647593,-312.29,0.00013699,2]
[347184504,1735554647603,-800.0,0.00013699,2]
[347184505,1735554647613,-500.0,0.00013699,2]
[347184506,1735554647622,-150.93552035,0.00013699,2]
[347184507,1735554647632,-500.0,0.00013699,2]
[347184508,1735554647641,-500.0,0.00013699,2]
[347184509,1735554647650,-500.0,0.00013699,2]
[347184510,1735554647659,-500.0,0.00013699,2]
[347184511,1735554647668,-550.0626304,0.00013699,2]
[347184512,1735554647678,-1767.41,0.000137,2]
[347184513,1735554647687,-1767.41,0.000137,2]
[347184514,1735554647697,-1767.41,0.000137,2]
[347184515,1735554647706,-1767.41,0.000137,2]
[347184516,1735554647715,-1767.41,0.000137,2]
[347184517,1735554647724,-1767.41,0.000137,2]
[347184518,1735554647733,-1767.41,0.000137,2]
[347184519,1735554647742,-1767.41,0.000137,2]
[347184520,1735554647752,-1767.41,0.000137,2]
[347184521,1735554647761,-1767.41,0.000137,2]
[347184522,1735554647770,-314.0,0.0001371,2]
[347184523,1735554647779,-150.0,0.00013713,2]
[347184524,1735554647788,-150.0,0.00013713,2]
[347184525,1735554647797,-500.0,0.00013716,2]
[347184526,1735554647807,-1000.0,0.00013726,2]
[347184527,1735554647817,-1000.0,0.00013753,2]
[347184528,1735554647827,-150.0,0.00013759,2]
[347184529,1735554647836,-150.0,0.00013771,2]
[347184530,1735554647845,-1019.4235065,0.0001378,2]
[347184531,1735554647855,-718.214,0.0001378,2]
[347184532,1735554647864,-500.0,0.00013781,2]
[347184533,1735554647873,-150.0,0.0001379,2]
[347184534,1735554647883,-2300.0,0.00013795,2]
[347184535,1735554647892,-900.0,0.00013795,2]
[347184536,1735554647901,-1973.0,0.000138,2]
[347184537,1735554647910,-150.0,0.00013806,2]
[347184538,1735554647920,-150.0,0.00013829,2]
[347184539,1735554647929,-150.0,0.00013852,2]
[347184540,1735554647938,-500.0,0.00013853,2]
[347184541,1735554647947,-932.21,0.00013871,2]
[347184542,1735554647956,-314.0,0.0001388,2]
[347184543,1735554647966,-150.0,0.00013887,2]
[347184544,1735554647975,-150.0,0.00013899,2]
[347184545,1735554647985,-1005.0,0.000139,2]
[347184546,1735554648152,-1000.0,0.000139,2]
[347184547,1735554648161,-800.0,0.000139,5]
[347184548,1735554648171,-292.548513,0.00013945,2]
[347184549,1735554648180,-276.02039834,0.00013945,2]
[347184550,1735554648189,-154.08043873,0.00013945,2]
[347184551,1735554648198,-932.21,0.00013971,2]
[347184552,1735554648207,-932.21,0.00013971,2]
[347184553,1735554648217,-932.21,0.00013971,2]
[347184554,1735554648226,-666.0,0.00013971,2]
[347184555,1735554648235,-666.0,0.00013971,2]
[347184556,1735554648244,-151.0,0.00013972,2]
[347184557,1735554648253,-151.0,0.00013972,2]
[347184558,1735554648263,-273.371652,0.00013972,2]
[347184559,1735554648271,-273.371652,0.00013972,2]
[347184560,1735554648281,-1587.087385,0.00013972,2]
[347184561,1735554648290,-500.0,0.00013972,2]
[347184562,1735554648299,-515.86,0.00013972,2]
[347184563,1735554648308,-500.0,0.00013972,2]
[347184564,1735554648318,-500.0,0.00013972,2]
[347184565,1735554648327,-500.0,0.00013972,2]
[347184566,1735554648336,-644.59,0.00013972,2]
[347184567,1735554648345,-500.0,0.00013972,2]
[347184568,1735554648355,-500.0,0.00013972,2]
[347184569,1735554648364,-500.0,0.00013972,2]
[347184570,1735554648373,-582.06,0.00013972,2]
[347184571,1735554648382,-500.0,0.00013972,2]
[347184572,1735554648391,-500.0,0.00013972,2]
[347184573,1735554648400,-500.0,0.00013972,2]
[347184574,1735554648410,-627.92,0.00013972,2]
[347184575,1735554648420,-500.0,0.00013972,2]
[347184576,1735554648429,-500.0,0.00013972,2]
[347184577,1735554648438,-500.0,0.00013972,2]
[347184578,1735554648448,-743.64,0.00013972,2]
[347184579,1735554648457,-502.42207076,0.00013972,2]
[347184580,1735554648467,-505.34220476,0.00013972,2]
[347184581,1735554648476,-549.69,0.00013972,2]
[347184582,1735554648485,-500.0,0.00013972,2]
[347184583,1735554648495,-500.0,0.00013972,2]
[347184584,1735554648504,-505.66428549,0.00013972,2]
[347184585,1735554648512,-182.24675663,0.00013972,2]
[347184586,1735554648522,-500.0,0.00013972,2]
[347184587,1735554648532,-500.0,0.00013972,2]
[347184588,1735554648541,-500.0,0.00013972,2]
[347184589,1735554648550,-1100.37,0.00013972,2]
[347184590,1735554648560,-500.0,0.00013972,2]
[347184591,1735554648569,-648.92,0.00013972,2]
[347184592,1735554648579,-157.67375143,0.00013972,2]
[347184593,1735554648588,-258.51609344,0.00013972,2]
[347184594,1735554648597,-500.0,0.00013972,2]
[347184595,1735554648608,-500.0,0.00013972,2]
[347184596,1735554648617,-516.03,0.00013972,2]
[347184597,1735554648627,-500.0,0.00013972,2]
[347184598,1735554648637,-521.87,0.00013972,2]
[347184599,1735554648646,-509.41013143,0.00013972,2]
[347184600,1735554648655,-500.0,0.00013972,2]
[347184601,1735554648664,-500.0,0.00013972,2]
[347184602,1735554648674,-609.91,0.00013972,2]
[347184603,1735554648683,-500.0,0.00013972,2]
[347184604,1735554648692,-500.0,0.00013972,2]
[347184605,1735554648703,-500.0,0.00013972,2]
[347184606,1735554648712,-500.0,0.00013972,2]
[347184607,1735554648722,-500.0,0.00013972,2]
[347184608,1735554648732,-500.0,0.00013972,2]
[347184609,1735554648741,-500.0,0.00013972,2]
[347184610,1735554648750,-500.0,0.00013972,2]
[347184611,1735554648759,-500.0,0.00013972,2]
[347184612,1735554648769,-500.0,0.00013972,2]
[347184613,1735554648778,-759.77,0.00013972,2]
[347184614,1735554648787,-1148.51,0.00013972,2]
[347184615,1735554648797,-500.0,0.00013972,2]
[347184616,1735554648807,-500.0,0.00013972,2]
[347184617,1735554648816,-500.0,0.00013972,2]
[347184618,1735554648826,-500.0,0.00013972,2]
[347184619,1735554648835,-545.94069125,0.00013972,2]
[347184620,1735554648845,-500.0,0.00013972,2]
[347184621,1735554648855,-500.0,0.00013972,2]
[347184622,1735554648864,-500.0,0.00013972,2]
[347184623,1735554648873,-500.0,0.00013972,2]
[347184624,1735554648883,-500.0,0.00013972,2]
[347184625,1735554648892,-500.0,0.00013972,7]
[347184626,1735554648902,-500.0,0.00013972,2]
[347184627,1735554648912,-500.0,0.00013972,2]
[347184628,1735554648922,-500.0,0.00013972,2]
[347184629,1735554648932,-953.27,0.00013972,2]
[347184630,1735554648941,-500.0,0.00013972,2]
[347184631,1735554648951,-260.79026706,0.00013972,2]
[347184632,1735554648961,-783.73,0.00013972,2]
[347184633,1735554648971,-500.0,0.00013972,2]
[347184634,1735554648980,-500.0,0.00013972,2]
[347184635,1735554648990,-688.92,0.00013972,2]
[347184636,1735554649000,-500.0,0.00013972,2]
[347184637,1735554649009,-500.0,0.00013972,2]
[347184638,1735554649019,-500.0,0.00013972,2]
[347184639,1735554649028,-838.01,0.00013972,2]
[347184640,1735554649037,-287.4955025,0.00013972,2]
[347184641,1735554649046,-502.45263553,0.00013972,2]
[347184642,1735554649056,-595.21,0.00013972,2]
[347184643,1735554649065,-500.0,0.00013972,2]
[347184644,1735554649074,-1036.02,0.00013972,2]
[347184645,1735554649083,-500.0,0.00013972,2]
[347184646,1735554649093,-774.44,0.00013972,2]
[347184647,1735554649106,-549.14,0.00013972,2]
[347184648,1735554649115,-500.0,0.00013972,2]
[347184649,1735554649124,-500.0,0.00013972,2]
[347184650,1735554649133,-500.0,0.00013972,2]
[347184651,1735554649143,-500.0,0.00013972,2]
[347184652,1735554649153,-883.34,0.00013972,2]
[347184653,1735554649163,-500.0,0.00013972,2]
[347184654,1735554649173,-502.3329564,0.00013972,2]
[347184655,1735554649183,-500.0,0.00013972,2]
[347184656,1735554649192,-500.0,0.00013972,2]
[347184657,1735554649202,-500.0,0.00013972,2]
[347184658,1735554649211,-500.0,0.00013972,2]
[347184659,1735554649221,-500.0,0.00013972,2]
[347184660,1735554649230,-500.0,0.00013972,2]
[347184661,1735554649239,-515.37,0.00013972,2]
[347184662,1735554649248,-554.12025852,0.00013972,2]
[347184663,1735554649258,-500.0,0.00013972,2]
[347184664,1735554649267,-500.0,0.00013972,2]
[347184665,1735554649276,-500.0,0.00013972,2]
[347184666,1735554649285,-506.99403217,0.00013972,2]
[347184667,1735554649295,-500.0,0.00013972,2]
[347184668,1735554649304,-500.0,0.00013972,2]
[347184669,1735554649314,-500.0,0.00013972,2]
[347184670,1735554649323,-1202.92,0.00013972,2]
[347184671,1735554649332,-500.0,0.00013972,2]
[347184672,1735554649341,-500.0,0.00013972,2]
[347184673,1735554649350,-500.0,0.00013972,2]
[347184674,1735554649359,-500.0,0.00013972,2]
[347184675,1735554649369,-500.0,0.00013972,2]
[347184676,1735554649379,-322.67094223,0.00013972,2]
[347184677,1735554649388,-500.0,0.00013972,2]
[347184678,1735554649397,-510.83,0.00013972,2]
[347184679,1735554649407,-500.0,0.00013972,2]
[347184680,1735554649416,-500.0,0.00013972,2]
[347184681,1735554649425,-500.0,0.00013972,2]
[347184682,1735554649435,-500.0,0.00013972,2]
[347184683,1735554649444,-500.0,0.00013972,2]
[347184684,1735554649455,-500.0,0.00013972,2]
[347184685,1735554649464,-500.0,0.00013972,2]
[347184686,1735554649475,-500.0,0.00013972,2]
[347184687,1735554649484,-500.0,0.00013972,2]
[347184688,1735554649493,-500.0,0.00013972,2]
[347184689,1735554649502,-996.69,0.00013972,2]
[347184690,1735554649511,-612.6,0.00013972,2]
[347184691,1735554649520,-500.0,0.00013972,2]
[347184692,1735554649530,-500.0,0.00013972,2]
[347184693,1735554649539,-500.0,0.00013972,2]
[347184694,1735554649548,-500.0,0.00013972,2]
[347184695,1735554649556,-500.0,0.00013972,2]
[347184696,1735554649565,-500.0,0.00013972,2]
[347184697,1735554649575,-500.0,0.00013972,2]
[347184698,1735554649584,-500.0,0.00013972,2]
[347184699,1735554649593,-500.0,0.00013972,2]
[347184700,1735554649607,-982.97,0.00013972,2]
[347184701,1735554649617,-1360.64,0.00013972,2]
[347184702,1735554649626,-500.0,0.00013972,2]
[347184703,1735554649636,-504.81,0.00013972,2]
[347184704,1735554649645,-974.37,0.00013972,2]
[347184705,1735554649654,-513.58791824,0.00013972,2]
[347184706,1735554649664,-500.52,0.00013972,2]
[347184707,1735554649673,-500.0,0.00013972,2]
[347184708,1735554649682,-907.54,0.00013972,2]
[347184709,1735554649692,-521.19,0.00013972,2]
[347184710,1735554649703,-500.0,0.00013972,2]
[347184711,1735554649712,-500.0,0.00013972,2]
[347184712,1735554649722,-500.0,0.00013972,2]
[347184713,1735554649732,-500.0,0.00013972,2]
[347184714,1735554649741,-1618.68,0.00013972,2]
[347184715,1735554649750,-500.0,0.00013972,2]
[347184716,1735554649759,-1214.94,0.00013972,2]
[347184717,1735554649768,-500.0,0.00013972,2]
[347184718,1735554649777,-500.0,0.00013972,2]
[347184719,1735554649787,-682.33,0.00013972,2]
[347184720,1735554649796,-930.73,0.00013972,2]
[347184721,1735554649806,-500.0,0.00013972,2]
[347184722,1735554649815,-500.0,0.00013972,2]
[347184723,1735554649825,-2615.11,0.00013972,2]
[347184724,1735554649834,-500.0,0.00013972,2]
[347184725,1735554649844,-500.0,0.00013972,2]
[347184726,1735554649853,-1343.34,0.00013972,2]
[347184727,1735554649862,-500.0,0.00013972,2]
[347184728,1735554649871,-500.0,0.00013972,2]
[347184729,1735554649880,-1605.7,0.00013972,2]
[347184730,1735554649890,-500.0,0.00013972,2]
[347184731,1735554649899,-1347.41,0.00013972,2]
[347184732,1735554649909,-500.0,0.00013972,2]
[347184733,1735554649918,-740.98,0.00013972,2]
[347184734,1735554649927,-500.0,0.00013972,2]
[347184735,1735554649937,-500.0,0.00013972,2]
[347184736,1735554649946,-500.0,0.00013972,2]
[347184737,1735554649957,-1010.13,0.00013972,2]
[347184738,1735554649966,-500.0,0.00013972,2]
[347184739,1735554649975,-500.0,0.00013972,2]
[347184740,1735554649984,-732.49,0.00013972,2]
[347184741,1735554649994,-500.0,0.00013972,2]
[347184742,1735554650003,-500.0,0.00013972,2]
[347184743,1735554650012,-500.0,0.00013972,2]
[347184744,1735554650021,-512.74557158,0.00013972,2]
[347184745,1735554650031,-500.0,0.00013972,2]
[347184746,1735554650040,-500.0,0.00013972,2]
[347184747,1735554650049,-235.4049174,0.00013972,2]
[347184748,1735554650058,-738.14,0.00013972,2]
[347184749,1735554650067,-500.0,0.00013972,2]
[347184750,1735554650077,-709.32,0.00013972,2]
[347184751,1735554650086,-1055.18,0.00013972,2]
[347184752,1735554650099,-1396.55,0.00013972,2]
[347184753,1735554650108,-4031.59,0.00013972,2]
[347184754,1735554650117,-2517.56,0.00013972,2]
[347184755,1735554650126,-500.0,0.00013972,2]
[347184756,1735554650136,-500.0,0.00013972,2]
[347184757,1735554650145,-500.0,0.00013972,2]
[347184758,1735554650154,-1255.43,0.00013972,2]
[347184759,1735554650163,-1693.33,0.00013972,2]
[347184760,1735554650172,-1279.84,0.00013972,2]
[347184761,1735554650181,-500.0,0.00013972,2]
[347184762,1735554650191,-647.45,0.00013972,2]
[347184763,1735554650200,-577.79,0.00013972,2]
[347184764,1735554650210,-506.1859446,0.00013972,2]
[347184765,1735554650219,-1741.51,0.00013972,2]
[347184766,1735554650229,-500.0,0.00013972,2]
[347184767,1735554650238,-942.55,0.00013972,2]
[347184768,1735554650247,-899.5,0.00013972,2]
[347184769,1735554650256,-500.0,0.00013972,2]
[347184770,1735554650266,-500.0,0.00013972,2]
[347184771,1735554650274,-500.0,0.00013972,2]
[347184772,1735554650284,-500.0,0.00013972,2]
[347184773,1735554650293,-500.0,0.00013972,2]
[347184774,1735554650303,-971.2,0.00013972,2]
[347184775,1735554650313,-852.09,0.00013972,2]
[347184776,1735554650322,-500.0,0.00013972,2]
[347184777,1735554650331,-500.0,0.00013972,2]
[347184778,1735554650490,-526.98,0.00013972,2]
[347184779,1735554650500,-1602.37,0.00013972,2]
[347184780,1735554650510,-500.0,0.00013972,2]
[347184781,1735554650519,-500.0,0.00013972,2]
[347184782,1735554650528,-1168.41,0.00013972,2]
[347184783,1735554650538,-718.04,0.00013972,2]
[347184784,1735554650547,-520.46,0.00013972,2]
[347184785,1735554650556,-500.0,0.00013972,2]
[347184786,1735554650565,-500.0,0.00013972,2]
[347184787,1735554650575,-500.0,0.00013972,2]
[347184788,1735554650584,-500.0,0.00013972,2]
[347184789,1735554650593,-500.97,0.00013972,2]
[347184790,1735554650603,-1610.98,0.00013972,2]
[347184791,1735554650612,-522.32,0.00013972,2]
[347184792,1735554650622,-500.0,0.00013972,2]
[347184793,1735554650631,-500.0,0.00013972,2]
[347184794,1735554650641,-829.69,0.00013972,2]
[347184795,1735554650650,-500.0,0.00013972,2]
[347184796,1735554650659,-500.0,0.00013972,2]
[347184797,1735554650669,-592.14,0.00013972,2]
[347184798,1735554650678,-500.0,0.00013972,2]
[347184799,1735554650687,-500.0,0.00013972,2]
[347184800,1735554650697,-743.74,0.00013972,2]
[347184801,1735554650707,-822.9,0.00013972,2]
[347184802,1735554650716,-503.10126606,0.00013972,2]
[347184803,1735554650725,-500.0,0.00013972,2]
[347184804,1735554650735,-500.0,0.00013972,2]
[347184805,1735554650745,-500.0,0.00013972,2]
[347184806,1735554650755,-500.0,0.00013972,2]
[347184807,1735554650765,-500.0,0.00013972,2]
[347184808,1735554650775,-500.0,0.00013972,2]
[347184809,1735554650784,-500.0,0.00013972,2]
[347184810,1735554650794,-961.28,0.00013972,2]
[347184811,1735554650803,-500.0,0.00013972,2]
[347184812,1735554650812,-500.0,0.00013972,2]
[347184813,1735554650823,-1300.51,0.00013972,2]
[347184814,1735554650833,-1306.13,0.00013972,2]
[347184815,1735554650842,-1211.16,0.00013972,2]
[347184816,1735554650851,-500.0,0.00013972,2]
[347184817,1735554650860,-165.88219178,0.00013972,2]
[347184818,1735554650870,-500.0,0.00013972,2]
[347184819,1735554650879,-500.0,0.00013972,2]
[347184820,1735554650888,-500.0,0.00013972,2]
[347184821,1735554650898,-644.72,0.00013972,2]
[347184822,1735554650907,-507.58,0.00013972,2]
[347184823,1735554650916,-500.0,0.00013972,2]
[347184824,1735554650925,-1716.07,0.00013972,2]
[347184825,1735554650935,-500.0,0.00013972,2]
[347184826,1735554650944,-685.33,0.00013972,2]
[347184827,1735554650954,-500.0,0.00013972,2]
[347184828,1735554650963,-500.0,0.00013972,2]
[347184829,1735554650973,-1140.3,0.00013972,2]
[347184830,1735554650982,-1582.78,0.00013972,2]
[347184831,1735554650992,-500.0,0.00013972,2]
[347184832,1735554651001,-1527.24,0.00013972,2]
[347184833,1735554651011,-500.0,0.00013972,2]
[347184834,1735554651020,-1499.25,0.00013972,2]
[347184835,1735554651030,-500.0,0.00013972,2]
[347184836,1735554651040,-1626.34,0.00013972,2]
[347184837,1735554651049,-500.0,0.00013972,2]
[347184838,1735554651059,-799.47,0.00013972,2]
[347184839,1735554651068,-775.88,0.00013972,2]
[347184840,1735554651078,-500.0,0.00013972,2]
[347184841,1735554651087,-500.0,0.00013972,2]
[347184842,1735554651099,-500.0,0.00013972,2]
[347184843,1735554651109,-936.82,0.00013972,2]
[347184844,1735554651119,-789.36,0.00013972,2]
[347184845,1735554651129,-1745.68,0.00013972,2]
[347184846,1735554651140,-747.79,0.00013972,2]
[347184847,1735554651150,-500.0,0.00013972,2]
[347184848,1735554651159,-500.0,0.00013972,2]
[347184849,1735554651169,-608.35,0.00013972,2]
[347184850,1735554651179,-500.0,0.00013972,2]
[347184851,1735554651188,-500.0,0.00013972,2]
[347184852,1735554651197,-500.0,0.00013972,2]
[347184853,1735554651208,-539.77,0.00013972,2]
[347184854,1735554651218,-500.0,0.00013972,2]
[347184855,1735554651227,-500.0,0.00013972,2]
[347184856,1735554651237,-745.85,0.00013972,2]
[347184857,1735554651247,-500.0,0.00013972,2]
[347184858,1735554651256,-782.89,0.00013972,2]
[347184859,1735554651266,-881.97,0.00013972,2]
[347184860,1735554651276,-500.0,0.00013972,2]
[347184861,1735554651286,-570.91,0.00013972,2]
[347184862,1735554651295,-500.0,0.00013972,2]
[347184863,1735554651305,-500.0,0.00013972,2]
[347184864,1735554651314,-822.0,0.00013972,2]
[347184865,1735554651324,-1033.39,0.00013972,2]
[347184866,1735554651333,-854.9,0.00013972,2]
[347184867,1735554651342,-703.8,0.00013972,2]
[347184868,1735554651351,-500.0,0.00013972,2]
[347184869,1735554651369,-843.64,0.00013972,2]
[347184870,1735554651381,-500.0,0.00013972,2]
[347184871,1735554651391,-500.0,0.00013972,2]